bitfinex-derivatives/quotes_ETHF0:USTF0_20250917
["timestamp","ask_amount","ask_price","bid_price","bid_amount"]
[1758127534939,0.45,4489.4,4489.3,0.71]
[1758127539844,0.5023,4490.4,4490.3,0.4152]
[1758127540042,0.7055,4490.4,4490.3,0.4152]
[1758127540852,0.3029,4490.3,4490.2,3.2078]
[1758127541150,0.7055,4489.8,4489.7,3.623]
[1758127541751,0.7055,4489.8,4489.7,3.8105]
[1758127542148,0.5023,4489.8,4489.7,3.8105]
[1758127543453,0.3029,4489.8,4489.7,3.8105]
[1758127543656,0.5023,4489.8,4489.7,3.8105]
[1758127543950,0.3029,4489.9,4489.8,0.1875]
[1758127544155,0.3029,4489.9,4489.8,0.6027]
[1758127545153,0.5023,4489.9,4489.8,0.6027]
[1758127546156,0.5023,4489.9,4489.8,0.4152]
[1758127546358,0.3029,4489.8,4489.7,3.2078]
[1758127546556,0.7055,4489.8,4489.7,3.2078]
[1758127546750,0.7055,4489.3,4489.2,3.4216]
[1758127548854,0.7055,4489.3,4489.2,3.623]
[1758127549859,0.7055,4489.3,4489.2,3.8105]
[1758127551956,0.3029,4489.3,4489.2,3.8105]
[1758127552157,0.1192,4489.5,4489.4,0.6027]
[1758127552352,0.3186,4489.5,4489.4,0.6027]
[1758127552553,0.5218,4489.5,4489.4,0.4152]
[1758127552758,0.8247,4489.5,4489.4,0.4152]
[1758127557176,1.35617311,4489.5,4489.4,0.4152]
[1758127559176,1.35617311,4489.5,4489.4,0.2138]
[1758127559373,1.35617311,4489.5,4489.2,3.2078]
[1758127559374,0.3208,4489.4,4489.2,3.2078]
[1758127559578,0.117,4489.0,4488.6,3.2078]
[1758127559780,0.7333,4488.7,4488.6,3.2078]
[1758127559979,1.26477311,4488.7,4488.6,3.2078]
[1758127560777,1.26524475,4488.7,4488.6,3.2078]
[1758127562578,1.26524475,4488.7,4488.6,3.4182]
[1758127562783,0.7333,4488.7,4488.6,3.4182]
[1758127562983,0.3208,4488.7,4488.6,3.7993]
[1758127563388,0.7333,4488.7,4488.6,3.6123]
[1758127563579,0.7333,4488.7,4488.6,3.7993]
[1758127564088,0.7333,4488.7,4488.6,3.6123]
[1758127565386,0.7333,4488.7,4488.6,3.4182]
[1758127565592,0.7333,4488.4,4488.3,0.1782]
[1758127565788,1.26542673,4488.4,4488.3,0.2004]
[1758127566288,1.26542673,4488.4,4488.3,0.4108]
[1758127567194,1.26542673,4488.4,4488.3,0.2326]
[1758127567791,1.26542673,4488.4,4488.3,0.0222]
[1758127567988,1.48942673,4488.4,4488.3,0.0222]
[1758127568183,0.9573,4488.4,4488.3,0.0222]
[1758127568381,0.9573,4488.4,4487.1,3.2078]
[1758127568382,0.2978,4487.4,4487.1,3.2078]
[1758127568588,0.7111,4487.2,4487.1,3.6155]
[1758127568988,0.4973,4487.2,4487.1,3.8031]
[1758127570487,0.4973,4487.2,4487.1,3.6155]
[1758127570988,0.7111,4487.2,4487.1,3.6155]
[1758127571583,0.7111,4487.2,4487.1,3.4107]
[1758127573795,0.7111,4487.2,4487.1,3.2078]
[1758127575291,0.8288,4486.5,4486.4,3.4107]
[1758127577095,0.8288,4486.5,4486.4,3.2078]
[1758127578191,0.8288,4486.5,4486.2,0.1783]
[1758127583104,0.7111,4486.3,4486.2,0.1783]
[1758127583496,0.2978,4486.2,4485.7,3.2078]
[1758127583802,0.8288,4486.0,4485.9,0.4077]
[1758127584402,0.8288,4486.0,4485.7,3.2078]
[1758127584702,0.7111,4485.8,4485.7,3.2078]
[1758127584895,0.7111,4485.8,4485.7,3.4107]
[1758127585805,0.7111,4485.8,4485.7,3.6155]
[1758127586997,0.7111,4485.8,4485.7,3.8031]
[1758127587904,0.2978,4485.8,4485.7,3.8031]
[1758127588203,0.6405,4486.0,4485.9,0.5953]
[1758127588605,0.84,4486.0,4485.9,0.4077]
[1758127589304,1.0538,4486.0,4485.9,0.4077]
[1758127590406,1.0538,4486.0,4485.7,3.2078]
[1758127590706,0.7111,4485.8,4485.7,3.2078]
[1758127591402,0.7111,4485.8,4485.7,3.4107]
[1758127592798,1.24116605,4485.8,4485.7,3.2078]
[1758127593904,1.24116605,4485.8,4485.5,0.1783]
[1758127594097,0.7111,4485.6,4485.5,0.3812]
[1758127594294,1.24116605,4485.6,4485.5,0.2029]
[1758127596100,1.24116605,4485.6,4485.3,0.44589608]
[1758127596300,0.7111,4485.4,4485.3,0.64879608]
[1758127596508,1.24116605,4485.4,4485.3,0.44589608]
[1758127596910,1.24116605,4485.4,4485.3,0.64879608]
[1758127598410,1.46616605,4485.4,4485.3,0.64879608]
[1758127602518,1.46616605,4485.4,4485.3,0.44589608]
[1758127607824,1.25236605,4485.4,4485.3,1.04559608]
[1758127608112,1.22426605,4485.4,4485.3,0.85719608]
[1758127608318,1.44926605,4485.4,4485.3,1.04559608]
[1758127608715,1.44926605,4485.4,4485.3,0.85719608]
[1758127611217,1.22426605,4485.4,4485.3,1.04559608]
[1758127611414,1.25236605,4485.4,4485.3,1.04559608]
[1758127613322,1.44926605,4485.4,4485.3,0.85719608]
[1758127616123,1.44926605,4485.4,4485.3,1.04559608]
[1758127616124,1.25236605,4485.4,4485.3,1.04559608]
[1758127616523,1.44926605,4485.4,4485.3,0.44589608]
[1758127616720,1.44926605,4485.4,4485.3,0.64829608]
[1758127617721,1.44926605,4485.4,4485.3,0.85749608]
[1758127617923,1.22426605,4485.4,4485.3,1.04539608]
[1758127618131,1.44926605,4485.4,4485.3,1.04539608]
[1758127620424,1.44926605,4485.4,4485.3,0.85749608]
[1758127620628,1.44926605,4485.4,4485.3,0.64829608]
[1758127620830,1.44926605,4485.4,4485.3,0.44589608]
[1758127621528,1.44926605,4485.4,4485.3,1.04829608]
[1758127621728,1.25236605,4485.4,4485.3,1.04829608]
[1758127621931,1.44946605,4485.4,4485.3,0.86039608]
[1758127622630,1.22446605,4485.4,4485.3,0.44589608]
[1758127622930,1.44946605,4485.4,4485.3,0.44589608]
[1758127623937,1.44946605,4485.4,4485.3,0.65119608]
[1758127624233,1.44946605,4485.4,4485.3,0.86039608]
[1758127624430,1.44946605,4485.4,4485.3,0.65119608]
[1758127625133,1.44946605,4485.4,4485.3,0.86039608]
[1758127625731,1.22446605,4485.4,4485.3,0.86039608]
[1758127625932,1.44946605,4485.4,4485.3,0.86039608]
[1758127628829,1.44946605,4485.4,4485.3,0.44589608]
[1758127629834,1.22446605,4485.4,4485.3,0.85739608]
[1758127630135,1.05286605,4485.4,4485.3,1.04559608]
[1758127630532,0.5228,4485.4,4485.3,1.04559608]
[1758127630727,0.2978,4485.4,4485.3,1.04559608]
[1758127631631,0.5006,4485.4,4485.3,1.04559608]
[1758127631937,0.5006,4485.4,4485.3,0.85739608]
[1758127632132,1.24798435,4485.4,4485.3,0.85739608]
[1758127632727,1.24797301,4485.4,4485.3,0.85739608]
[1758127634636,1.24797301,4485.4,4485.3,0.64669608]
[1758127635235,1.24797301,4485.4,4485.3,0.44589608]
[1758127644856,1.24797301,4485.4,4485.3,0.85739608]
[1758127645044,1.24797301,4485.4,4485.3,1.04559608]
[1758127645956,1.24797301,4485.4,4485.3,0.85739608]
[1758127654662,1.24797301,4485.4,4485.3,1.04559608]
[1758127655060,1.24797301,4485.4,4485.3,0.85739608]
[1758127655262,1.24797301,4485.4,4485.3,0.44589608]
[1758127660465,1.24797301,4485.4,4485.3,0.64079608]
[1758127661464,1.24797301,4485.4,4485.3,0.44589608]
[1758127661761,1.24797301,4485.4,4485.1,0.1783]
[1758127661963,0.7115,4484.8,4484.7,3.2078]
[1758127662154,1.24457301,4484.8,4484.7,3.2078]
[1758127662762,1.24457301,4484.8,4484.7,3.7182]
[1758127663056,1.24457301,4484.8,4484.7,3.5233]
[1758127665371,1.24457301,4484.8,4484.7,3.7182]
[1758127665568,1.24457301,4484.8,4484.7,3.9305]
[1758127670974,0.93497301,4484.8,4484.7,3.9305]
[1758127671177,1.24457301,4484.8,4484.7,3.9305]
[1758127672669,0.93497301,4484.8,4484.7,3.9305]
[1758127672967,0.53307301,4484.8,4484.7,3.9305]
[1758127673168,0.6421,4486.0,4485.9,0.1949]
[1758127673368,0.5133,4486.0,4485.9,3.9163]
[1758127673568,0.3096,4486.0,4485.9,3.9163]
[1758127673761,0.1177,4486.5,4486.2,0.3013]
[1758127673961,0.225,4486.8,4486.5,0.3013]
[1758127674171,0.6269,4486.8,4486.7,0.1949]
[1758127674674,0.9365,4486.8,4486.7,0.1949]
[1758127675370,0.8403,4486.5,4486.4,3.2078]
[1758127675575,0.8403,4486.0,4485.9,3.4027]
[1758127676667,0.8403,4486.0,4485.9,3.615]
[1758127676869,0.8403,4486.0,4485.9,3.9163]
[1758127677579,0.6421,4486.0,4485.9,3.9163]
[1758127677878,0.5133,4486.0,4485.9,3.9163]
[1758127678981,0.1288,4486.5,4485.9,3.9163]
[1758127679177,0.4926,4486.4,4486.3,0.42]
[1758127679479,0.6888,4486.4,4486.3,0.42]
[1758127680683,0.6154,4486.0,4485.9,3.9294]
[1758127682783,0.3538,4486.5,4485.9,3.9294]
[1758127682985,0.2973,4486.9,4486.3,0.42]
[1758127683285,0.7176,4486.8,4486.7,0.42]
[1758127683480,0.9138,4486.8,4486.1,0.3016]
[1758127683678,0.319,4486.5,4486.4,0.2132]
[1758127683879,0.8116,4486.5,4486.4,0.2132]
[1758127686580,0.8116,4486.5,4485.9,3.2078]
[1758127686775,0.8116,4486.0,4485.9,3.2078]
[1758127687171,5.03452,4486.0,4485.9,3.2078]
[1758127687375,5.56424326,4486.0,4485.9,3.2078]
[1758127687776,5.34132326,4486.0,4485.9,3.2078]
[1758127689382,5.34132326,4486.0,4485.4,3.4024]
[1758127689383,0.8237,4485.5,4485.4,3.4024]
[1758127689587,1.0487,4485.5,4485.4,3.4024]
[1758127692589,1.0487,4485.5,4485.4,3.5981]
[1758127693794,0.8237,4485.5,4485.4,3.8993]
[1758127694387,0.6303,4485.5,4485.4,3.8993]
[1758127694684,0.2944,4485.5,4485.4,3.8993]
[1758127695084,0.5053,4485.5,4485.4,3.8993]
[1758127695284,0.6303,4485.5,4485.4,3.8993]
[1758127696289,0.2944,4485.5,4485.4,3.8993]
[1758127697891,0.225,4485.6,4485.5,0.3633]
[1758127698193,0.225,4485.6,4485.5,0.7536]
[1758127698389,0.2944,4486.4,4485.6,0.3012]
[1758127698595,0.9237,4485.9,4485.8,0.6915]
[1758127698795,1.45426768,4485.9,4485.8,0.3903]
[1758127699285,1.45426768,4485.9,4485.8,0.6915]
[1758127700191,0.125,4485.5,4485.4,3.2078]
[1758127700492,0.8237,4485.5,4485.4,3.4024]
[1758127701188,0.8237,4485.5,4485.4,3.5981]
[1758127701386,0.8237,4485.5,4485.4,3.8993]
[1758127701782,0.2944,4486.4,4485.9,0.3012]
[1758127701981,0.2944,4487.2,4486.2,0.3903]
[1758127702192,0.125,4487.0,4486.7,3.2078]
[1758127702586,0.2944,4486.9,4486.7,3.2078]
[1758127703089,0.3359,4487.0,4486.7,3.2078]
[1758127703281,0.2944,4486.9,4486.7,3.2078]
[1758127703482,0.125,4487.0,4486.7,3.2078]
[1758127704094,0.2944,4487.6,4486.9,0.40097]
[1758127704395,0.2944,4487.8,4487.4,3.2078]
[1758127704594,0.4194,4487.5,4487.4,3.2078]
[1758127706193,0.8237,4487.5,4487.4,3.2078]
[1758127708197,0.6303,4487.5,4487.4,3.2078]
[1758127708391,0.4194,4487.5,4487.4,3.2078]
[1758127708593,0.4194,4488.0,4487.4,3.2078]
[1758127708898,0.4194,4488.0,4487.9,3.2078]
[1758127709194,0.8237,4488.0,4487.9,3.2078]
[1758127713002,0.6303,4488.0,4487.9,3.2078]
[1758127713300,0.4194,4488.0,4487.9,3.2078]
[1758127713604,0.8237,4488.0,4487.9,3.2078]
[1758127716400,0.4194,4488.0,4487.9,3.2078]
[1758127716601,0.8237,4488.0,4487.9,3.2078]
[1758127718702,0.6303,4488.0,4487.9,3.2078]
[1758127719005,0.4194,4488.0,4487.9,3.2078]
[1758127722596,0.3181,4488.3,4487.9,3.2078]
[1758127722799,0.125,4488.5,4488.0,0.22281]
[1758127722996,0.125,4488.5,4488.1,0.225]
[1758127723202,0.4431,4488.5,4488.1,0.225]
[1758127723708,0.3181,4488.4,4488.1,0.225]
[1758127724704,0.3181,4488.4,4488.2,0.40086]
[1758127724908,0.3181,4488.8,4488.3,0.225]
[1758127725109,0.3181,4488.8,4488.7,3.2078]
[1758127731316,0.3181,4488.9,4488.7,3.4328]
[1758127731916,0.125,4489.0,4488.7,3.4328]
[1758127732415,0.3181,4488.9,4488.7,3.4328]
[1758127732923,0.84493091,4488.8,4488.7,3.4328]
[1758127735918,0.45,4489.4,4488.7,7.4328]
[1758127736119,0.45,4489.4,4489.3,3.2078]
[1758127736313,0.45,4489.4,4489.3,3.4318]
[1758127736626,0.7681,4489.4,4489.3,3.4318]
[1758127737033,0.9684,4489.4,4489.3,3.4318]
[1758127737231,0.7681,4489.4,4489.3,3.4318]
[1758127740936,0.7696,4489.4,4489.3,3.4318]
[1758127743537,0.7696,4489.4,4489.3,3.2078]
[1758127743538,1.1572,4489.4,4489.3,3.2078]
[1758127743733,1.1572,4489.4,4489.3,3.4318]
[1758127744937,1.1572,4489.4,4489.3,3.2078]
[1758127745938,0.7696,4489.4,4489.3,3.2078]
[1758127747440,1.1696,4489.4,4489.3,3.2078]
[1758127747835,0.7696,4489.4,4489.3,3.2078]
[1758127748231,0.7696,4489.4,4489.3,3.4328]
[1758127749047,0.45,4489.4,4489.3,3.4328]
[1758127749336,0.7606,4489.4,4489.3,3.4328]
[1758127756442,0.9705,4489.4,4489.3,3.4328]
[1758127756747,1.1772,4489.4,4489.3,3.4328]
[1758127762248,1.1772,4489.4,4489.3,3.2078]
[1758127762548,5.39995,4489.4,4489.3,3.2078]
[1758127762753,5.1772,4489.4,4489.3,3.2078]
[1758127764256,5.70583858,4489.4,4489.3,3.2078]
[1758127765958,5.70583858,4489.4,4489.1,0.2004]
[1758127766256,0.7272,4489.2,4489.1,0.2004]
[1758127766443,1.25583858,4489.2,4489.1,0.2004]
[1758127766751,0.3106,4488.9,4488.8,3.2078]
[1758127767149,0.5205,4488.9,4488.8,3.2078]
[1758127767652,0.7272,4488.9,4488.8,3.2078]
[1758127768253,0.3106,4488.9,4488.8,3.2078]
[1758127768757,0.5205,4488.9,4488.8,3.2078]
[1758127768952,0.3106,4488.9,4488.8,3.2078]
[1758127770349,0.1229,4489.0,4488.8,3.2078]
[1758127770546,0.45,4489.4,4488.9,0.224]
[1758127770547,0.3106,4489.3,4488.9,0.224]
[1758127770954,0.3106,4489.1,4488.9,0.224]
[1758127771460,0.3106,4489.2,4488.9,0.224]
[1758127771657,0.5205,4489.3,4488.9,0.224]
[1758127771863,0.6434,4489.0,4488.9,0.224]
[1758127772560,0.4335,4489.0,4488.9,0.224]
[1758127772761,0.3106,4489.0,4488.9,0.224]
[1758127773860,0.3106,4489.0,4488.9,0.62479]
[1758127774561,0.45,4489.4,4488.9,0.62479]
[1758127774755,0.7606,4489.4,4489.3,3.2078]
[1758127774956,0.7606,4489.4,4489.3,3.4318]
[1758127775356,0.9705,4489.4,4489.3,3.4318]
[1758127779061,1.1772,4489.4,4489.3,3.4318]
[1758127780260,0.9705,4489.4,4489.3,3.4318]
[1758127780960,0.7606,4489.4,4489.3,3.4318]
[1758127782361,0.7606,4489.4,4489.3,3.83256]
[1758127783961,0.7606,4489.4,4489.3,3.4318]
[1758127784161,0.7606,4489.4,4489.3,3.83256]
[1758127786266,0.18045127,4491.2,4489.5,1.10475]
[1758127786467,0.5466,4491.0,4490.9,0.2008]
[1758127786669,1.07477545,4491.0,4490.9,0.2008]
[1758127787761,1.07446514,4491.0,4490.8,3.2078]
[1758127788073,0.95156514,4490.9,4490.8,3.2078]
[1758127788372,1.26756514,4490.9,4490.8,3.2078]
[1758127792269,1.26756514,4490.9,4490.8,3.6215]
[1758127792769,0.316,4490.9,4490.8,3.9421]
[1758127793665,0.316,4491.4,4490.8,3.6215]
[1758127793865,0.7397,4491.4,4491.3,0.4137]
[1758127794570,1.26635776,4491.4,4491.3,0.2008]
[1758127795276,0.7397,4491.4,4491.3,0.2008]
[1758127796876,0.7397,4491.4,4491.3,0.7343]
[1758127799070,0.224,4491.8,4491.4,0.3157]
[1758127799271,0.918,4491.8,4491.7,0.408]
[1758127799672,0.694,4491.8,4491.7,0.408]
[1758127799877,0.694,4491.8,4491.7,0.2065]
[1758127801178,0.694,4491.8,4491.7,0.7237]
[1758127802180,0.5254,4491.5,4491.4,0.2065]
[1758127802767,0.5008,4491.5,4491.4,0.7237]
[1758127805373,0.127,4492.0,4491.4,0.7237]
[1758127805573,0.821,4492.0,4491.9,3.4143]
[1758127805776,0.6278,4492.0,4491.9,3.9315]
[1758127805973,0.821,4492.0,4491.9,3.9315]
[1758127806871,0.6278,4492.0,4491.9,3.9315]
[1758127807066,0.5008,4492.0,4491.9,3.9315]
[1758127807271,0.3054,4492.3,4491.9,3.6158]
[1758127807470,0.511705,4492.4,4492.3,0.4116]
[1758127807680,0.709705,4492.4,4492.3,0.4116]
[1758127808373,0.006205,4492.4,4492.0,0.311]
[1758127808676,0.5055,4492.3,4492.2,0.7226]
[1758127809787,0.7035,4492.3,4492.2,0.7226]
[1758127810278,0.7035,4492.3,4492.2,0.2083]
[1758127811077,0.7035,4492.3,4492.0,0.224]
[1758127811383,0.8313,4492.0,4491.9,3.2078]
[1758127811568,0.8313,4492.0,4491.9,3.4161]
[1758127811774,0.3054,4492.0,4491.9,3.9304]
[1758127811973,0.8313,4492.0,4491.9,3.9304]
[1758127812183,0.3054,4492.0,4491.9,4.33092]
[1758127812376,0.5055,4492.3,4492.2,0.4116]
[1758127812579,0.3054,4492.3,4492.2,0.7226]
[1758127812782,0.006205,4492.4,4492.2,0.7226]
[1758127813077,0.311605,4492.4,4492.3,0.311]
[1758127813278,0.311605,4492.4,4492.3,0.7226]
[1758127813670,0.511705,4492.4,4492.3,0.7226]
[1758127814276,0.709705,4492.4,4492.3,0.4116]
[1758127814670,0.709705,4492.4,4492.3,0.7226]
[1758127815077,0.311605,4492.4,4492.3,0.7226]
[1758127815385,0.709705,4492.4,4492.3,0.7226]
[1758127815579,0.709705,4492.4,4492.3,0.4116]
[1758127815780,0.511705,4492.4,4492.3,0.7226]
[1758127816476,0.709705,4492.4,4492.3,0.4116]
[1758127816779,0.3054,4492.3,4492.2,0.2083]
[1758127816981,0.7035,4492.3,4492.2,0.6356]
[1758127817382,0.7035,4492.3,4492.2,0.9466]
[1758127817575,0.5055,4492.3,4492.2,0.9466]
[1758127818785,0.7035,4492.3,4492.2,0.6356]
[1758127818987,0.7035,4492.3,4492.2,0.9466]
[1758127819185,0.7035,4492.3,4492.2,0.7226]
[1758127819386,0.7035,4492.3,4492.2,0.6356]
[1758127819582,0.7035,4492.3,4492.2,0.7226]
[1758127819988,0.7035,4492.3,4492.2,0.4116]
[1758127821688,0.7035,4492.3,4492.2,0.2083]
[1758127822386,4.92611001,4492.3,4492.0,0.178]
[1758127822581,4.7035,4492.3,4492.0,0.178]
[1758127822781,0.7035,4492.1,4492.0,0.178]
[1758127823180,0.7035,4492.1,4491.9,3.2078]
[1758127823181,0.1278,4492.0,4491.9,3.2078]
[1758127823383,0.8313,4492.0,4491.9,3.2078]
[1758127823584,1.35785126,4492.0,4491.9,3.2078]
[1758127824586,5.35785126,4492.0,4491.9,3.2078]
[1758127824784,5.35785126,4492.0,4491.9,2.5642]
[1758127824982,0.7035,4491.5,4491.4,3.7271]
[1758127825983,0.3981,4491.5,4491.4,3.9304]
[1758127826177,0.2001,4491.5,4491.4,3.9304]
[1758127826376,0.006205,4492.4,4491.5,0.1167]
[1758127826589,0.2001,4491.6,4491.5,0.8393]
[1758127826992,0.3981,4491.6,4491.5,0.8393]
[1758127827396,0.7035,4491.3,4491.2,0.1781]
[1758127827584,1.2305146,4491.3,4491.2,0.1781]
[1758127828189,0.3981,4491.3,4491.2,0.9007]
[1758127829281,0.2001,4491.3,4491.2,0.7226]
[1758127829486,40.927,4493.0,4491.3,0.311]
[1758127829487,0.5294,4492.3,4491.3,0.311]
[1758127829787,0.2001,4491.8,4491.7,0.7226]
[1758127830082,0.72704116,4491.8,4491.7,0.7226]
[1758127830289,0.2001,4491.8,4491.7,0.7226]
[1758127830885,0.3981,4491.8,4491.7,0.7226]
[1758127831482,1.23043827,4491.8,4491.7,0.5193]
[1758127831686,1.23043827,4491.8,4491.7,0.311]
[1758127831882,0.92503827,4491.8,4491.6,3.5188]
[1758127832086,1.23043827,4491.7,4491.6,3.7271]
[1758127832490,1.23043827,4491.7,4491.6,0.5193]
[1758127832794,0.7035,4491.7,4491.6,0.5193]
[1758127838296,0.3981,4491.7,4491.6,3.9304]
[1758127840900,0.2001,4491.7,4491.6,3.9304]
[1758127844901,0.6928,4491.7,4491.6,3.9304]
[1758127845403,0.6928,4491.7,4491.6,3.2078]
[1758127845898,1.21973854,4491.7,4491.6,3.2078]
[1758127846297,1.21973854,4491.7,4491.6,3.5009]
[1758127846498,0.6928,4491.7,4491.6,3.5009]
[1758127846701,1.21983398,4491.7,4491.6,3.5009]
[1758127847205,1.44383398,4491.7,4491.6,3.7127]
[1758127848205,0.224,4491.7,4491.6,3.924]
[1758127850902,3.5052,4492.5,4491.6,3.6309]
[1758127851106,0.413305,4492.4,4492.3,0.7162]
[1758127851294,1.16501174,4492.4,4492.3,0.7162]
[1758127851806,1.46241174,4492.4,4492.3,0.7162]
[1758127852303,0.53391174,4492.4,4492.3,3.924]
[1758127852508,0.006205,4492.4,4492.3,3.924]
[1758127855309,0.218005,4492.4,4492.3,3.924]
[1758127855614,0.006205,4492.4,4492.3,3.924]
[1758127858404,3.5052,4493.5,4492.3,3.924]
[1758127858610,0.7818645,4493.4,4493.3,0.3961]
[1758127858912,1.1549645,4493.4,4493.3,0.7082]
[1758127859303,1.4692645,4493.4,4493.3,0.7082]
[1758127860210,0.5268645,4493.4,4493.3,0.7082]
[1758127860612,0.7268645,4493.4,4493.3,0.7082]
[1758127860812,0.9299645,4493.4,4493.3,0.7082]
[1758127861114,0.7268645,4493.4,4493.3,0.7082]
[1758127861615,3.6318,4494.1,4494.0,0.8356]
[1758127861804,4.36142837,4494.1,4494.0,0.8356]
[1758127862007,4.67572837,4494.1,4494.0,0.8356]
[1758127862502,4.36142837,4494.1,4494.0,0.8356]
[1758127862908,3.73432837,4494.1,4494.0,0.8356]
[1758127863313,3.2078,4494.1,4494.0,0.8356]
[1758127865212,3.4078,4494.1,4494.0,0.8356]
[1758127865616,0.2,4494.1,4494.0,0.8356]
[1758127867314,0.4289,4494.3,4494.2,0.7214]
[1758127867813,36.077,4494.9,4494.8,0.4172]
[1758127867814,36.8067,4494.9,4494.8,0.4172]
[1758127868019,36.8067,4494.9,4494.5,0.1185]
[1758127868020,0.7297,4494.7,4494.6,0.3042]
[1758127868320,0.7297,4494.7,4494.6,0.7214]
[1758127868819,0.4129,4494.7,4494.6,0.7214]
[1758127869715,0.7297,4494.7,4494.6,0.7214]
[1758127870510,0.7297,4494.7,4494.6,0.3042]
[1758127871113,0.7297,4494.7,4494.6,0.5138]
[1758127871312,0.4129,4494.7,4494.6,0.7214]
[1758127871512,0.6379,4494.7,4494.6,0.7214]
[1758127871917,0.4129,4494.7,4494.6,0.7214]
[1758127872119,0.6379,4494.7,4494.6,0.7214]
[1758127872307,0.9547,4494.7,4494.6,0.7214]
[1758127872512,0.9547,4494.7,4494.6,0.5138]
[1758127873915,0.9547,4494.7,4494.5,0.1185]
[1758127873916,1.4792615,4494.7,4494.1,0.3042]
[1758127874116,0.4129,4494.2,4494.1,0.5138]
[1758127874411,0.4129,4494.2,4493.5,0.4316]
[1758127874412,1.16256547,4494.2,4493.5,0.4316]
[1758127874613,0.7297,4493.6,4493.5,0.4316]
[1758127874822,1.25436547,4493.6,4493.5,0.3042]
[1758127875025,1.25436547,4493.6,4493.5,0.5138]
[1758127875223,1.25436547,4493.6,4493.5,0.3042]
[1758127875521,0.4129,4493.4,4493.3,3.512]
[1758127875719,0.7297,4493.4,4493.3,3.7216]
[1758127876216,0.93775938,4493.4,4493.1,0.0222]
[1758127876412,0.7297,4493.2,4493.1,0.0222]
[1758127876618,1.25455938,4493.2,4493.1,0.0222]
[1758127877424,1.25455938,4493.2,4493.1,0.536]
[1758127877623,1.47955938,4493.2,4493.1,0.536]
[1758127878824,1.47955938,4493.2,4493.1,0.3264]
[1758127879121,1.47955938,4493.2,4493.1,0.0222]
[1758127880023,1.16275938,4493.2,4492.9,0.178]
[1758127880223,0.7297,4493.0,4492.9,0.3876]
[1758127880525,1.25455938,4493.0,4492.9,0.178]
[1758127880723,1.25455938,4493.0,4492.5,0.1185]
[1758127881024,0.7297,4492.7,4492.6,0.5138]
[1758127881321,1.47955938,4492.7,4492.6,0.5138]
[1758127882225,1.47955938,4492.7,4492.6,0.3042]
[1758127882720,0.3168,4492.6,4492.4,0.3042]
[1758127882926,1.16275938,4492.7,4492.3,3.2078]
[1758127882927,0.7297,4492.4,4492.3,3.2078]
[1758127883319,0.7297,4492.4,4492.3,3.7216]
[1758127883818,0.2049,4492.6,4492.5,0.1185]
[1758127884024,0.2049,4493.1,4493.0,0.5357]
[1758127884216,0.4299,4493.1,4493.0,0.5357]
[1758127884412,1.16287839,4493.1,4493.0,0.8399]
[1758127884819,0.93787839,4493.1,4493.0,0.8399]
[1758127885028,1.16287839,4493.1,4493.0,0.8399]
[1758127885526,1.47967839,4493.1,4493.0,0.8399]
[1758127885916,1.47967839,4493.1,4492.5,0.1185]
[1758127886120,0.7297,4492.6,4492.5,0.4227]
[1758127886321,0.9547,4492.6,4492.5,0.6323]
[1758127886630,0.6379,4492.6,4492.5,0.8399]
[1758127886824,3.5246,4493.3,4492.5,0.8399]
[1758127887028,1.1627645,4493.2,4493.1,0.7214]
[1758127887220,1.4795645,4493.2,4493.1,0.5138]
[1758127887419,1.4795645,4493.2,4492.5,0.1185]
[1758127887624,0.4129,4492.7,4492.6,0.7214]
[1758127888125,0.2049,4492.7,4492.6,0.7214]
[1758127889932,0.225,4492.8,4492.6,0.7214]
[1758127890531,0.4299,4492.8,4492.7,0.7214]
[1758127890726,0.9547,4492.8,4492.7,0.7214]
[1758127893233,0.6379,4492.8,4492.7,0.7214]
[1758127894531,0.3168,4493.6,4492.8,0.3042]
[1758127894734,3.2078,4493.9,4493.4,0.7214]
[1758127895034,0.6379,4494.1,4494.0,0.8399]
[1758127895235,0.9547,4494.1,4494.0,0.6323]
[1758127895422,0.9547,4494.1,4494.0,0.5138]
[1758127896033,0.9547,4494.1,4494.0,0.6323]
[1758127898333,1.47946829,4494.1,4494.0,0.6323]
[1758127900645,0.6903,4493.9,4493.8,0.0222]
[1758127900841,1.21506829,4493.9,4493.8,0.0222]
[1758127902741,1.21506829,4493.9,4493.6,0.178]
[1758127902945,0.6903,4493.7,4493.6,0.178]
[1758127903245,1.44006829,4493.7,4493.6,0.178]
[1758127903448,42.24006829,4493.7,4493.6,0.178]
[1758127904748,42.24006829,4493.7,4493.1,0.3082]
[1758127904949,0.1967,4493.2,4493.1,0.7241]
[1758127905143,0.94646829,4493.2,4493.1,0.7241]
[1758127905845,0.74976829,4493.2,4493.1,0.7241]
[1758127909048,0.52476829,4493.2,4493.1,0.7241]
[1758127909746,0.52476829,4493.4,4493.1,0.4159]
[1758127910049,0.225,4493.6,4493.5,0.1257]
[1758127910353,3.5983,4494.6,4494.5,0.2024]
[1758127910556,4.64893159,4494.6,4494.5,0.6363]
[1758127910850,4.34913159,4494.6,4494.5,0.8498]
[1758127911250,4.64893159,4494.6,4494.5,0.6363]
[1758127912353,4.648802,4494.6,4494.5,0.6363]
[1758127912553,4.648802,4494.6,4494.5,0.3082]
[1758127913054,4.648802,4494.6,4494.5,0.5106]
[1758127913443,4.648802,4494.6,4494.5,0.3082]
[1758127913859,3.733502,4494.6,4494.5,0.8498]
[1758127914053,3.958502,4494.6,4494.5,0.8498]
[1758127914454,4.155202,4494.6,4494.5,0.8498]
[1758127914757,0.525702,4494.6,4494.5,4.0576]